bitfinex-derivatives/quotes_BTCF0:USTF0_20250129
["timestamp","ask_amount","ask_price","bid_price","bid_amount"]
[1738148793738,0.21731244,102480.0,102470.0,0.37540476]
[1738148794532,0.04217813,102480.0,102470.0,0.60895323]
[1738148794733,0.04217813,102480.0,102470.0,0.61365323]
[1738148795436,0.04317813,102480.0,102470.0,0.97445323]
[1738148796030,0.04317813,102480.0,102470.0,0.96975323]
[1738148797829,0.04317813,102480.0,102470.0,0.96971323]
[1738148800338,0.04317813,102480.0,102470.0,0.89863323]
[1738148800540,0.04317813,102480.0,102470.0,0.96971323]
[1738148803632,0.4905,102500.0,102470.0,1.01101323]
[1738148803835,0.4905,102500.0,102490.0,0.07318476]
[1738148804039,0.50032908,102500.0,102490.0,0.26318476]
[1738148804241,0.4484,102500.0,102490.0,0.26318476]
[1738148804434,0.0876,102500.0,102490.0,0.26318476]
[1738148804835,0.0996,102500.0,102490.0,0.26318476]
[1738148805435,0.0976,102500.0,102490.0,0.26318476]
[1738148805939,0.0886,102500.0,102490.0,0.26318476]
[1738148806243,0.0916,102500.0,102490.0,0.33422476]
[1738148807246,0.0916,102500.0,102490.0,0.37702476]
[1738148808834,0.0916,102500.0,102490.0,0.30598476]
[1738148809038,0.0916,102500.0,102490.0,0.37702476]
[1738148810948,0.0916,102500.0,102490.0,0.73782476]
[1738148812544,0.0916,102500.0,102490.0,0.76060652]
[1738148813549,0.11111219,102500.0,102490.0,0.76060652]
[1738148814649,0.11111219,102500.0,102490.0,0.7377597]
[1738148815151,0.06731219,102500.0,102490.0,0.83532543]
[1738148815450,0.06731219,102500.0,102490.0,0.85182543]
[1738148815946,0.02351219,102500.0,102490.0,0.85182543]
[1738148817151,0.02351219,102500.0,102490.0,1.0853739]
[1738148820553,0.02351219,102500.0,102490.0,1.14376101]
[1738148820848,0.058677,102510.0,102490.0,1.2517691]
[1738148821055,0.058677,102510.0,102500.0,0.4339197]
[1738148821261,0.058677,102510.0,102500.0,0.6339197]
[1738148822260,0.063677,102510.0,102500.0,0.6339197]
[1738148822548,0.063677,102510.0,102500.0,0.67636135]
[1738148823554,0.064677,102510.0,102500.0,0.67636135]
[1738148823955,0.064677,102510.0,102500.0,0.6339197]
[1738148824453,0.064677,102510.0,102500.0,0.92585528]
[1738148824956,0.063677,102510.0,102500.0,0.92585528]
[1738148825151,0.063677,102510.0,102500.0,0.96829693]
[1738148825353,0.063677,102510.0,102500.0,0.96207747]
[1738148825856,0.063677,102510.0,102500.0,1.00451912]
[1738148827159,0.063677,102510.0,102500.0,0.96207747]
[1738148827360,0.063677,102510.0,102500.0,0.92585528]
[1738148827554,0.063677,102510.0,102500.0,0.96829693]
[1738148827755,0.063677,102510.0,102500.0,0.96208013]
[1738148828055,0.063677,102510.0,102500.0,1.19532478]
[1738148828263,0.063677,102510.0,102500.0,1.23776643]
[1738148830565,0.063677,102510.0,102500.0,1.24741679]
[1738148831464,0.063677,102510.0,102500.0,1.20497514]
[1738148832253,0.063677,102510.0,102500.0,1.24741679]
[1738148833058,0.063677,102510.0,102500.0,1.28211194]
[1738148833762,0.063677,102510.0,102500.0,1.21119194]
[1738148833959,0.063677,102510.0,102500.0,1.28211194]
[1738148836367,0.063677,102510.0,102500.0,1.08412324]
[1738148836567,0.063677,102510.0,102500.0,1.10696764]
[1738148839662,0.063677,102510.0,102500.0,1.45811502]
[1738148843264,0.063677,102510.0,102500.0,1.03964261]
[1738148843473,0.063677,102510.0,102500.0,1.00438666]
[1738148843773,0.063677,102510.0,102500.0,0.90303059]
[1738148844069,0.063677,102510.0,102500.0,0.97391059]
[1738148846071,0.063677,102510.0,102500.0,0.90303059]
[1738148846457,0.11165905,102510.0,102500.0,0.81260689]
[1738148846659,0.47245905,102510.0,102500.0,0.86058894]
[1738148846857,0.424477,102510.0,102500.0,0.86058894]
[1738148847063,0.424477,102510.0,102500.0,0.59912943]
[1738148847575,0.47245905,102510.0,102500.0,0.59912943]
[1738148848367,0.47245905,102510.0,102500.0,0.55114738]
[1738148848871,0.5204411,102510.0,102490.0,0.03]
[1738148849071,0.5399641,102500.0,102490.0,0.04]
[1738148849367,0.5399641,102500.0,102480.0,1.14547154]
[1738148849559,0.40878205,102490.0,102480.0,1.27547154]
[1738148849863,0.40878205,102490.0,102480.0,0.41050958]
[1738148850671,0.3608,102490.0,102480.0,0.41050958]
[1738148851269,0.3608,102490.0,102480.0,0.41150958]
[1738148851974,0.3992,102490.0,102480.0,0.41250958]
[1738148853578,0.3992,102490.0,102480.0,0.13214613]
[1738148857991,0.47237593,102490.0,102480.0,0.13214613]
[1738148858585,0.3992,102490.0,102480.0,0.13214613]
[1738148858787,0.47237593,102490.0,102480.0,0.13214613]
[1738148860595,0.3992,102490.0,102480.0,0.13214613]
[1738148861091,0.47237593,102490.0,102480.0,0.13214613]
[1738148870604,0.44723132,102490.0,102480.0,0.13214613]
[1738148871706,0.49526264,102490.0,102480.0,0.13214613]
[1738148873506,1.99526264,102490.0,102480.0,0.13214613]
[1738148874304,1.99526264,102490.0,102470.0,0.19009393]
[1738148874499,0.53526264,102480.0,102470.0,0.19009393]
[1738148875513,0.53626264,102480.0,102470.0,0.19009393]
[1738148878604,0.53926264,102480.0,102470.0,0.19009393]
[1738148880012,0.54924419,102480.0,102470.0,0.19009393]
[1738148880508,0.18844419,102480.0,102470.0,0.19009393]
[1738148880812,0.91004419,102480.0,102470.0,0.19009393]
[1738148882407,1.02623768,102480.0,102470.0,0.19009393]
[1738148893727,0.97820636,102480.0,102470.0,0.19009393]
[1738148894321,1.02623768,102480.0,102470.0,0.19009393]
[1738148895227,1.17151392,102480.0,102470.0,0.19009393]
[1738148898630,1.02623768,102480.0,102470.0,0.19009393]
[1738148899129,0.97820636,102480.0,102470.0,0.19009393]
[1738148900331,0.93760636,102480.0,102470.0,0.19009393]
[1738148900530,0.93760636,102480.0,102470.0,0.22789393]
[1738148901930,0.98563768,102480.0,102470.0,0.22789393]
[1738148902426,0.93760636,102480.0,102470.0,0.22789393]
[1738148902627,0.98563768,102480.0,102470.0,0.22789393]
[1738148903125,0.98563768,102480.0,102470.0,0.19009393]
[1738148903326,1.02213768,102480.0,102470.0,0.19009393]
[1738148904723,2.52213768,102480.0,102470.0,0.19009393]
[1738148907222,1.02213768,102480.0,102470.0,0.19009393]
[1738148907729,2.52213768,102480.0,102470.0,0.19009393]
[1738148911828,0.97410636,102480.0,102470.0,0.19009393]
[1738148912928,1.02213768,102480.0,102470.0,0.19009393]
[1738148913128,0.97410636,102480.0,102470.0,0.19009393]
[1738148913729,1.1193826,102480.0,102470.0,0.23281565]
[1738148913937,1.16741392,102480.0,102470.0,0.23281565]
[1738148914928,1.1193826,102480.0,102470.0,0.23281565]
[1738148915433,1.16741392,102480.0,102470.0,0.23281565]
[1738148915836,1.16741392,102480.0,102470.0,0.19009393]
[1738148917230,1.1193826,102480.0,102470.0,0.19009393]
[1738148918328,1.03485128,102480.0,102470.0,0.23812525]
[1738148918529,0.99705128,102480.0,102470.0,0.23812525]
[1738148918726,0.99705128,102480.0,102470.0,0.30812525]
[1738148918923,0.99705128,102480.0,102470.0,0.3508462]
[1738148921229,0.63625128,102480.0,102470.0,0.3508462]
[1738148921629,0.21766073,102480.0,102470.0,0.64285913]
[1738148921829,0.21766073,102480.0,102470.0,1.00365913]
[1738148922537,0.21766073,102480.0,102470.0,1.07421913]
[1738148923233,0.21766073,102480.0,102470.0,1.08394478]
[1738148925844,0.01398155,102480.0,102470.0,1.08394478]
[1738148928741,0.004,102480.0,102470.0,1.08394478]
[1738148939954,0.004,102480.0,102470.0,1.07421913]
[1738148940156,0.004,102480.0,102470.0,1.03971913]
[1738148940344,0.0397,102480.0,102470.0,1.03971913]
[1738148940747,0.0397,102480.0,102470.0,1.00421913]
[1738148941347,0.49656264,102480.0,102470.0,0.52482781]
[1738148941551,0.53406264,102480.0,102470.0,0.52482781]
[1738148941947,0.48603132,102480.0,102470.0,0.52482781]
[1738148946064,0.48603132,102480.0,102470.0,0.57285913]
[1738148946659,0.0772,102480.0,102470.0,0.57285913]
[1738148947165,0.0772,102480.0,102470.0,0.93365913]
[1738148947769,0.0772,102480.0,102470.0,0.57285913]
[1738148949758,0.0772,102480.0,102470.0,0.92266779]
[1738148951473,0.0772,102480.0,102470.0,0.93242534]
[1738148951767,0.0397,102480.0,102470.0,0.93242534]
[1738148956070,0.0397,102480.0,102470.0,1.29322534]
[1738148956472,0.0397,102480.0,102470.0,1.36366534]
[1738148961071,0.0397,102480.0,102470.0,1.36362534]
[1738148961974,0.059216,102480.0,102470.0,1.36362534]
[1738148964180,0.059216,102480.0,102470.0,1.39899289]
[1738148967479,0.059216,102480.0,102470.0,1.3017116]
[1738148967679,0.059216,102480.0,102470.0,1.3387116]
[1738148971382,0.059216,102480.0,102470.0,0.7160828]
[1738148973385,0.023516,102480.0,102470.0,0.7160828]
[1738148973776,0.023516,102480.0,102470.0,0.7543828]
[1738148974473,0.023516,102480.0,102470.0,1.04704522]
[1738148977580,0.023516,102480.0,102470.0,1.08239614]
[1738148978081,0.023516,102480.0,102470.0,1.13954238]
[1738148978281,0.023516,102480.0,102470.0,1.1875737]
[1738148978582,0.12603182,102490.0,102470.0,1.15222278]
[1738148978883,0.12603182,102490.0,102480.0,0.09606264]
[1738148979072,0.12603182,102490.0,102480.0,0.31606264]
[1738148979885,0.12803182,102490.0,102480.0,0.31606264]
[1738148980290,0.13403182,102490.0,102480.0,0.31606264]
[1738148980979,0.12603182,102490.0,102480.0,0.31706264]
[1738148981185,0.12603182,102490.0,102480.0,0.31806264]
[1738148981786,0.03854613,102490.0,102480.0,0.61065201]
[1738148982578,0.03854613,102490.0,102480.0,1.04952004]
[1738148983183,0.05806022,102490.0,102480.0,1.04952004]
[1738148984781,0.05806022,102490.0,102480.0,1.11984004]
[1738148984983,0.01966022,102490.0,102480.0,1.56544661]
[1738148985180,0.20380711,102510.0,102480.0,1.37738949]
[1738148985385,0.20380711,102510.0,102500.0,0.45686264]
[1738148985585,0.20380711,102510.0,102500.0,0.75986359]
[1738148985781,0.14598433,102510.0,102500.0,0.75986359]
[1738148986589,0.15198433,102510.0,102500.0,0.75986359]
[1738148989394,0.15198433,102510.0,102500.0,1.05184518]
[1738148989395,0.06453087,102510.0,102500.0,1.05184518]
[1738148990093,0.06453087,102510.0,102500.0,1.00912423]
[1738148990597,0.06453087,102510.0,102500.0,1.05182598]
[1738148991892,0.06453087,102510.0,102500.0,1.01882275]
[1738148992092,0.06453087,102510.0,102500.0,1.0615245]
[1738148992494,0.10213087,102510.0,102500.0,0.60025291]
[1738148992695,0.13973087,102510.0,102500.0,0.64295466]
[1738148992895,0.13973087,102510.0,102500.0,0.87640124]
[1738148993282,0.54856219,102510.0,102500.0,0.71542817]
[1738148996391,0.54856219,102510.0,102500.0,0.19]
[1738148998898,0.50053087,102510.0,102500.0,0.23803132]
[1738148999601,0.50053087,102510.0,102500.0,0.28606264]
[1738148999898,0.50053087,102510.0,102500.0,0.23803132]
[1738149000088,0.13973087,102510.0,102500.0,0.23803132]
[1738149000901,0.18776219,102510.0,102500.0,0.23803132]
[1738149001101,0.15924116,102510.0,102500.0,0.23803132]
[1738149002204,0.15924116,102510.0,102500.0,0.4714779]
[1738149003500,0.15924116,102510.0,102500.0,0.42344658]
[1738149003799,0.15924116,102510.0,102500.0,0.4714779]
[1738149004009,0.15924116,102510.0,102500.0,0.42344658]
[1738149006906,0.15924116,102510.0,102500.0,0.4714779]
[1738149008006,0.15924116,102510.0,102500.0,0.8322779]
[1738149008208,0.15924116,102510.0,102500.0,0.87498056]
[1738149008400,0.12164116,102510.0,102500.0,0.87498056]
[1738149010506,0.12164116,102510.0,102500.0,0.93351557]
[1738149014905,0.16064116,102510.0,102500.0,0.93351557]
[1738149015615,0.16064116,102510.0,102500.0,1.00367557]
[1738149017214,0.16064116,102510.0,102500.0,1.35405348]
[1738149019911,0.16064116,102510.0,102500.0,1.30602216]
[1738149020621,0.20867248,102510.0,102500.0,0.94522216]
[1738149025824,0.56947248,102510.0,102500.0,0.87506216]
[1738149026016,0.6175038,102510.0,102500.0,0.87506734]
[1738149026414,0.6175038,102510.0,102500.0,0.8323595]
[1738149026617,0.56947248,102510.0,102500.0,0.8323595]
[1738149027919,0.56947248,102510.0,102500.0,0.87506876]
[1738149028219,0.56947248,102510.0,102500.0,0.8323595]
[1738149028820,0.56947248,102510.0,102500.0,0.8750689]
[1738149029019,0.56947248,102510.0,102500.0,0.8323595]
[1738149030125,0.56947248,102510.0,102500.0,0.42401344]
[1738149030515,0.6175038,102510.0,102500.0,0.42401344]
[1738149031723,0.63701409,102510.0,102500.0,0.42401344]
[1738149031911,2.13701409,102510.0,102500.0,0.42401344]
[1738149032310,2.08898277,102510.0,102500.0,0.42401344]
[1738149033229,0.58898277,102510.0,102500.0,0.42401344]
[1738149034039,0.58898277,102510.0,102500.0,0.19]
[1738149046532,0.63701409,102510.0,102490.0,0.51415957]
[1738149046736,0.49646264,102500.0,102490.0,0.33415957]
[1738149046936,1.99646264,102500.0,102490.0,0.33415957]
[1738149048524,1.99846264,102500.0,102490.0,0.33415957]
[1738149049019,0.49846264,102500.0,102490.0,0.33415957]
[1738149050333,0.54649396,102500.0,102490.0,0.33415957]
[1738149050526,0.54649396,102500.0,102480.0,0.28352472]
[1738149050722,0.53466264,102490.0,102480.0,0.42380545]
[1738149051731,0.48663132,102490.0,102480.0,0.42380545]
[1738149052035,1.98663132,102490.0,102480.0,0.42380545]
[1738149052336,1.98663132,102490.0,102480.0,0.42480545]
[1738149053422,1.98663132,102490.0,102480.0,0.42580545]
[1738149054338,0.48663132,102490.0,102480.0,0.42580545]
[1738149056133,0.60306244,102490.0,102480.0,0.192]
[1738149069631,0.56346244,102490.0,102480.0,0.192]
[1738149073941,0.44703132,102490.0,102480.0,0.192]
[1738149075046,0.04803132,102490.0,102480.0,0.23471672]
[1738149075246,0.61235948,102500.0,102480.0,0.23471672]
[1738149075435,0.06754541,102490.0,102480.0,0.23471672]
[1738149076040,0.42834541,102490.0,102480.0,0.23471672]
[1738149076344,0.42834541,102490.0,102480.0,0.23371672]
[1738149076541,0.42834541,102490.0,102480.0,0.23271672]
[1738149077745,0.06754541,102490.0,102480.0,0.23271672]
[1738149077945,0.01951409,102490.0,102480.0,0.28074804]
[1738149078249,0.01951409,102490.0,102480.0,0.35698264]
[1738149078446,0.01951409,102490.0,102480.0,0.71878264]
[1738149078642,0.01951409,102490.0,102480.0,0.67075132]
[1738149079348,0.06754541,102490.0,102480.0,0.66543672]
[1738149079650,0.10594541,102490.0,102480.0,0.66543672]
[1738149080850,0.05791409,102490.0,102480.0,0.71346804]
[1738149081444,0.05791409,102490.0,102480.0,0.62272]
[1738149081844,0.10594541,102490.0,102480.0,0.62272]
[1738149082843,0.10594541,102490.0,102480.0,0.91497813]
[1738149083049,0.05791409,102490.0,102480.0,0.96300945]
[1738149083256,0.01951409,102490.0,102480.0,1.01104077]
[1738149083446,0.01951409,102490.0,102480.0,1.05375224]
[1738149083851,0.01951409,102490.0,102480.0,1.01104077]
[1738149086848,0.03902818,102490.0,102480.0,0.71874264]
[1738149093960,0.03902818,102490.0,102480.0,1.01100077]
[1738149094849,0.03902818,102490.0,102480.0,1.05371224]
[1738149097354,0.03902818,102490.0,102480.0,1.40409015]
[1738149098659,0.03902818,102490.0,102480.0,1.4393412]
[1738149099058,0.03902818,102490.0,102480.0,1.40409015]
[1738149100761,0.07422818,102490.0,102480.0,1.11183202]
[1738149101158,0.07422818,102490.0,102480.0,0.9939207]
[1738149101359,0.07422818,102490.0,102480.0,1.0637207]
[1738149102062,0.07422818,102490.0,102480.0,1.02100923]
[1738149102369,0.4830595,102490.0,102480.0,0.54237791]
[1738149107366,0.57044519,102490.0,102480.0,0.192]
[1738149111570,0.57044519,102490.0,102480.0,0.24003132]
[1738149112673,0.4830595,102490.0,102480.0,0.24003132]
[1738149115776,0.4830595,102490.0,102480.0,0.192]
[1738149122180,0.50257359,102490.0,102480.0,0.192]
[1738149122365,0.45454227,102490.0,102480.0,0.28806264]
[1738149122570,0.09374227,102490.0,102480.0,0.64886264]
[1738149123077,0.09374227,102490.0,102480.0,0.28806264]
[1738149123474,0.09374227,102490.0,102480.0,0.64886264]
[1738149126683,0.09374227,102490.0,102480.0,0.71858264]
[1738149128584,0.09374227,102490.0,102480.0,1.01081812]
[1738149128787,0.09374227,102490.0,102480.0,1.0205456]
[1738149131691,0.09374227,102490.0,102480.0,0.97251428]
[1738149132292,0.09374227,102490.0,102480.0,1.0205456]
[1738149138902,0.09374227,102490.0,102480.0,1.06325707]
[1738149139799,0.09374227,102490.0,102480.0,1.0205456]
[1738149139999,0.09374227,102490.0,102480.0,1.06325707]
[1738149140299,0.09374227,102490.0,102480.0,1.0205456]
[1738149140798,0.09374227,102490.0,102480.0,0.77102159]
[1738149141000,0.09374227,102490.0,102480.0,0.72831012]
[1738149141689,0.09374227,102490.0,102480.0,0.77102159]
[1738149144599,0.09374227,102490.0,102480.0,1.1213995]
[1738149146305,0.11325636,102490.0,102480.0,1.1213995]
[1738149149111,0.11325636,102490.0,102480.0,1.41371967]
[1738149149708,0.11325636,102490.0,102480.0,1.44910891]
[1738149150806,0.13277045,102490.0,102480.0,1.44910891]
[1738149152009,0.13277045,102490.0,102480.0,1.15678874]
[1738149152405,0.13277045,102490.0,102480.0,1.1213995]
[1738149153599,0.13277045,102490.0,102480.0,1.15680562]
[1738149157110,0.13277045,102490.0,102480.0,1.20483694]
[1738149157413,0.12383182,102500.0,102480.0,1.41257995]
[1738149157715,0.28828257,102510.0,102490.0,0.52936264]
[1738149158011,0.28828257,102510.0,102500.0,0.52646264]
[1738149158213,0.28828257,102510.0,102500.0,0.77917411]
[1738149158413,0.28828257,102510.0,102500.0,0.81458023]
[1738149159311,0.29328257,102510.0,102500.0,0.81458023]
[1738149160215,0.29328257,102510.0,102500.0,0.77917411]
[1738149160615,0.17785145,102510.0,102500.0,0.77917411]
[1738149161714,0.17785145,102510.0,102500.0,0.81456062]
[1738149162108,0.17785145,102510.0,102500.0,0.74496062]
[1738149162309,0.17785145,102510.0,102500.0,0.77917411]
[1738149163215,0.17785145,102510.0,102500.0,0.78892485]
[1738149163818,0.17785145,102510.0,102500.0,1.43180863]
[1738149165010,0.17785145,102510.0,102500.0,1.30442657]
[1738149165320,0.17785145,102510.0,102500.0,1.37398657]
[1738149165617,0.17785145,102510.0,102500.0,1.42201789]
[1738149169316,0.17785145,102510.0,102500.0,1.06121789]
[1738149169622,0.17785145,102510.0,102500.0,1.42201789]
[1738149174121,0.17785145,102510.0,102500.0,1.42197789]
[1738149177826,0.17785145,102510.0,102500.0,1.07131401]
[1738149180825,0.17785145,102510.0,102500.0,1.02328269]
[1738149181123,0.17785145,102510.0,102500.0,1.37394657]
[1738149181514,0.19736174,102510.0,102500.0,1.37394657]
[1738149183224,0.19736174,102510.0,102500.0,1.42197789]
[1738149186728,0.19736174,102510.0,102500.0,1.45736335]
[1738149186929,0.19736174,102510.0,102500.0,1.42197789]
[1738149187225,0.19736174,102510.0,102500.0,1.37394657]
[1738149187835,0.19736174,102510.0,102500.0,1.42197789]
[1738149188527,0.19736174,102510.0,102500.0,1.44701253]
[1738149195929,0.19736174,102510.0,102500.0,1.39898121]
[1738149196229,0.19736174,102510.0,102500.0,1.44701253]
[1738149198331,0.19736174,102510.0,102500.0,1.39898121]
[1738149200332,0.19736174,102510.0,102500.0,1.44701253]
[1738149200724,0.19736174,102510.0,102500.0,1.09634865]
[1738149200924,0.19736174,102510.0,102500.0,1.04831733]
[1738149201128,0.19736174,102510.0,102500.0,1.09634865]
[1738149201532,0.19736174,102510.0,102500.0,1.04831733]
[1738149206434,0.19736174,102510.0,102500.0,1.00560586]
[1738149206634,0.19736174,102510.0,102500.0,0.97020679]
[1738149208238,0.19736174,102510.0,102500.0,1.32147662]
[1738149209237,0.19736174,102510.0,102500.0,1.2898551]
[1738149212431,0.19736174,102510.0,102500.0,0.94944876]
[1738149216234,0.19736174,102510.0,102500.0,0.99216023]
[1738149216440,0.19736174,102510.0,102500.0,1.02760284]
[1738149217640,0.24539306,102510.0,102500.0,0.91005152]
[1738149217938,0.60619306,102510.0,102500.0,0.51380891]
[1738149218442,0.60619306,102510.0,102500.0,0.47109744]
[1738149218739,0.19736174,102510.0,102500.0,0.56183634]
[1738149218939,0.19736174,102510.0,102500.0,0.92263634]
[1738149224248,0.21687203,102510.0,102500.0,0.92263634]
[1738149225446,0.26490335,102510.0,102500.0,0.92263634]
[1738149225835,0.21687203,102510.0,102500.0,0.92263634]
[1738149233654,0.17907203,102510.0,102500.0,0.97066766]
[1738149234048,0.17907203,102510.0,102500.0,1.00936766]
[1738149234454,0.17907203,102510.0,102500.0,1.04478003]
[1738149235157,0.17907203,102510.0,102500.0,1.00936766]
[1738149235357,0.17907203,102510.0,102500.0,1.04478118]
[1738149235747,0.14257203,102510.0,102500.0,1.04478118]
[1738149236453,0.14257203,102510.0,102500.0,1.05444112]
[1738149239151,0.14257203,102510.0,102500.0,1.11299199]
[1738149239646,0.18007203,102510.0,102500.0,1.11299199]
[1738149240856,0.18007203,102510.0,102500.0,1.18223199]
[1738149241444,0.18007203,102510.0,102500.0,1.13420067]
[1738149242348,0.18007203,102510.0,102500.0,1.18223199]
[1738149242957,0.18007203,102510.0,102500.0,1.37735614]
[1738149243157,0.23538232,102510.0,102500.0,1.37735614]
[1738149243455,0.23538232,102510.0,102500.0,1.42538746]
[1738149246860,0.23538232,102510.0,102500.0,1.14353199]
[1738149248958,0.23538232,102510.0,102500.0,1.06541089]
[1738149250271,0.19958232,102510.0,102500.0,1.06541089]
[1738149251262,0.19958232,102510.0,102500.0,1.10091089]
[1738149253665,0.19958232,102510.0,102500.0,1.04201569]
[1738149257165,0.19958232,102510.0,102500.0,1.00651569]
[1738149258775,0.23288232,102510.0,102500.0,1.00651569]
[1738149261073,0.23288232,102510.0,102500.0,0.95848437]
[1738149261372,0.26808232,102510.0,102500.0,1.01737957]
[1738149261764,0.26808232,102510.0,102500.0,1.05279393]
[1738149262174,0.26808232,102510.0,102500.0,1.01737957]
[1738149263284,0.26808232,102510.0,102500.0,1.09550574]
[1738149263585,0.26808232,102510.0,102500.0,1.0858458]
[1738149268391,0.26808232,102510.0,102500.0,1.36770127]
[1738149269887,0.31611364,102510.0,102500.0,1.29846127]
[1738149270093,0.31611364,102510.0,102500.0,1.31954995]
[1738149270486,0.26808232,102510.0,102500.0,1.36758127]
[1738149271784,0.26808232,102510.0,102500.0,1.0857258]
[1738149273495,0.26808232,102510.0,102500.0,1.05030721]
[1738149274196,0.26808232,102510.0,102500.0,1.08574909]
[1738149291101,0.26808232,102510.0,102500.0,0.65582909]
[1738149291303,0.26808232,102510.0,102500.0,0.62038721]
[1738149292098,0.26808232,102510.0,102500.0,0.90224268]
[1738149294399,0.26808232,102510.0,102500.0,0.93768165]
[1738149295307,0.26808232,102510.0,102500.0,0.65582618]
[1738149300914,0.26808232,102510.0,102500.0,0.62038721]
[1738149302409,0.26808232,102510.0,102500.0,0.88758163]
[1738149302716,0.31611364,102510.0,102500.0,0.83955031]
[1738149303316,0.26808232,102510.0,102500.0,0.79684273]
[1738149303617,0.26808232,102510.0,102500.0,0.84487405]
[1738149304414,0.23288232,102510.0,102500.0,0.89290537]
[1738149304620,0.23288232,102510.0,102500.0,0.9356087]
[1738149305118,0.23288232,102510.0,102500.0,0.97122975]
[1738149305427,0.16208232,102510.0,102500.0,1.28932642]
[1738149305610,0.20428894,102520.0,102500.0,1.61833322]
[1738149305924,0.35351055,102530.0,102510.0,0.60348016]
[1738149306109,0.35351055,102530.0,102520.0,0.52582264]
[1738149306311,0.14527624,102530.0,102520.0,0.81414702]
[1738149308519,0.14627624,102530.0,102520.0,0.81414702]
[1738149310820,0.001,102530.0,102520.0,1.16541685]
[1738149311715,0.001,102530.0,102520.0,1.1297958]
[1738149312117,0.001,102530.0,102520.0,1.13981273]
[1738149313324,0.001,102530.0,102520.0,1.16911273]
[1738149313818,0.0342,102530.0,102520.0,1.16911273]
[1738149314017,0.0342,102530.0,102520.0,1.05212141]
[1738149314216,0.08223132,102530.0,102520.0,0.56126983]
[1738149314421,0.11483132,102530.0,102520.0,0.56126983]
[1738149315124,0.11483132,102530.0,102520.0,0.85291929]
[1738149318221,0.11483132,102530.0,102520.0,0.21]
[1738149327733,0.11483132,102530.0,102520.0,0.25803132]
[1738149327934,0.0668,102530.0,102520.0,0.25803132]
[1738149333735,0.0668,102530.0,102520.0,0.61883132]
[1738149338837,0.0668,102530.0,102520.0,0.91048078]
[1738149341527,0.11483132,102530.0,102520.0,0.91048078]
[1738149341939,0.11483132,102530.0,102520.0,0.86244946]
[1738149342139,0.11483132,102530.0,102520.0,0.90409079]
[1738149342341,0.11483132,102530.0,102520.0,0.95212211]
[1738149342841,0.08630648,102530.0,102520.0,0.95212211]
[1738149345841,0.08630648,102530.0,102520.0,1.30339194]
[1738149348137,0.44710648,102530.0,102520.0,0.06803132]
[1738149348330,0.44710648,102530.0,102520.0,0.10410394]
[1738149349134,0.44718996,102530.0,102520.0,0.10410394]
[1738149349745,0.44718996,102530.0,102520.0,0.37355893]
[1738149351839,0.62232427,102530.0,102520.0,0.10410394]
[1738149355249,0.62232427,102530.0,102520.0,0.11656964]
[1738149362041,0.62232427,102530.0,102520.0,0.06853832]
[1738149365447,0.62232427,102530.0,102520.0,0.05607262]
[1738149371657,0.76849672,102530.0,102520.0,0.05607262]
[1738149377656,0.59336241,102530.0,102520.0,0.05607262]
[1738149380057,0.76849672,102530.0,102520.0,0.05607262]
[1738149380758,0.76849672,102530.0,102520.0,0.02]
[1738149383158,0.59336241,102530.0,102520.0,0.02]
[1738149384462,0.59336241,102530.0,102520.0,0.05610503]
[1738149388358,0.59336241,102530.0,102520.0,0.10413635]
[1738149388555,0.59336241,102530.0,102520.0,0.15216767]
[1738149389057,0.59336241,102530.0,102520.0,0.19315863]
[1738149389251,0.76849672,102530.0,102520.0,0.19315863]
[1738149390265,0.7880032,102530.0,102520.0,0.19315863]
[1738149391164,0.72982475,102530.0,102520.0,0.19315863]
[1738149393266,0.77785607,102530.0,102520.0,0.14512731]
[1738149393457,0.77785607,102530.0,102520.0,0.21380731]
[1738149394263,0.72982475,102530.0,102520.0,0.21380731]
[1738149394463,0.5836523,102530.0,102520.0,0.21380731]
[1738149395959,0.5836523,102530.0,102520.0,0.26183863]
[1738149396763,0.72982475,102530.0,102520.0,0.26183863]
[1738149401679,0.5836523,102530.0,102520.0,0.26183863]
[1738149404975,0.2228523,102530.0,102520.0,0.62263863]
[1738149407578,0.10589644,102530.0,102520.0,0.62263863]
[1738149410181,0.10589644,102530.0,102520.0,0.58164767]
[1738149410378,0.10589644,102530.0,102520.0,0.62263863]
[1738149411584,0.10589644,102530.0,102520.0,0.76820713]
[1738149411778,0.07329644,102530.0,102520.0,0.87110149]
[1738149412086,0.65597444,102540.0,102520.0,0.90120149]
[1738149412287,0.65597444,102540.0,102530.0,0.09606264]
[1738149412488,0.65597444,102540.0,102530.0,0.35315863]
[1738149413084,0.65597444,102540.0,102530.0,0.45069105]
[1738149414786,0.65597444,102540.0,102530.0,0.57162496]
[1738149415289,0.68857444,102540.0,102530.0,0.57162496]
[1738149415879,0.68857444,102540.0,102530.0,0.57262496]
[1738149416188,0.68857444,102540.0,102530.0,0.52459364]
[1738149416788,0.42544613,102540.0,102530.0,0.52459364]
[1738149417690,0.42544613,102540.0,102530.0,0.57262496]
[1738149418387,0.42544613,102540.0,102530.0,0.52459364]
[1738149418595,0.42544613,102540.0,102530.0,0.57262496]
[1738149419389,0.36094613,102540.0,102530.0,0.57262496]
[1738149419590,0.50955586,102550.0,102530.0,0.93342496]
[1738149419591,0.54135586,102550.0,102530.0,0.93342496]
[1738149419780,0.57455586,102550.0,102540.0,0.16462264]
[1738149419987,0.57455586,102550.0,102540.0,0.43171863]
[1738149420186,0.57455586,102550.0,102540.0,0.54367857]
[1738149420492,0.57455586,102550.0,102540.0,0.64120624]
[1738149420691,0.57455586,102550.0,102540.0,0.49564725]
[1738149420984,0.62258718,102550.0,102540.0,0.19]
[1738149421189,0.62258718,102550.0,102540.0,0.08129096]
[1738149422395,0.60377245,102550.0,102540.0,0.13032228]
[1738149422901,0.60377245,102550.0,102540.0,0.1783536]
[1738149423393,0.60377245,102550.0,102540.0,0.21337139]
[1738149424288,0.57197245,102550.0,102540.0,0.21337139]
[1738149424485,0.57197245,102550.0,102540.0,0.31724117]
[1738149425087,0.4258,102550.0,102540.0,0.31724117]
[1738149425593,0.4258,102550.0,102540.0,0.41475933]
[1738149426194,0.4565,102550.0,102540.0,0.41475933]
[1738149426886,0.0957,102550.0,102540.0,0.41475933]
[1738149429004,0.18321582,102550.0,102540.0,0.41475933]
[1738149431894,0.0957,102550.0,102540.0,0.41475933]
[1738149434202,0.065,102550.0,102540.0,0.41475933]
[1738149434499,0.56514971,102560.0,102540.0,0.46219933]
[1738149434800,0.62814971,102560.0,102550.0,0.11655132]
[1738149434987,0.62814971,102560.0,102550.0,0.36754228]
[1738149436087,0.62814971,102560.0,102550.0,0.36854228]
[1738149438503,0.62814971,102560.0,102550.0,0.40354867]
[1738149440091,0.62814971,102560.0,102550.0,0.36854228]
[1738149440500,0.62814971,102560.0,102550.0,0.38304659]
[1738149443302,0.62814971,102560.0,102550.0,0.31452659]
[1738149443506,0.54063389,102560.0,102550.0,0.38300659]
[1738149452007,0.68680634,102560.0,102550.0,0.38300659]
[1738149454223,0.57011858,102560.0,102550.0,0.38300659]